fUSD/lending_fUSD_20240129
["ID","MTS","AMOUNT","RATE_DAILY","PERIOD"]
[312967337,1706555038365,-500.0,0.00052054,31]
[312967338,1706555038388,-575.799027,0.00052054,31]
[312967339,1706555038412,-508.24002668,0.00052054,31]
[312967340,1706555038435,-500.0,0.00052054,31]
[312967341,1706555038458,-500.0,0.00052054,31]
[312967342,1706555038482,-601.47344427,0.00052054,31]
[312967343,1706555038506,-278.86878213,0.00052054,31]
[312967344,1706555038529,-500.0,0.00052054,31]
[312967345,1706555038552,-532.15128325,0.00052054,31]
[312967346,1706555038576,-552.2,0.00052054,31]
[312967347,1706555038599,-556.95209309,0.00052054,31]
[312967348,1706555038622,-500.0,0.00052054,31]
[312967349,1706555038646,-500.0,0.00052054,31]
[312967350,1706555038669,-516.54064194,0.00052054,31]
[312967351,1706555038693,-562.5,0.00052054,120]
[312967352,1706555038715,-422.37336382,0.00052054,31]
[312967353,1706555038738,-500.0,0.00052054,31]
[312967354,1706555038761,-500.0,0.00052054,31]
[312967355,1706555038784,-547.99688466,0.00052054,31]
[312967356,1706555038807,-500.0,0.00052054,31]
[312967357,1706555038830,-500.0,0.00052054,31]
[312967358,1706555038854,-421.75113232,0.00052054,31]
[312967359,1706555038877,-246.76509503,0.00052054,31]
[312967360,1706555039052,-332.87787672,0.00052054,31]
[312967361,1706555039077,-500.0,0.00052054,31]
[312967362,1706555039101,-1272.33,0.00052054,31]
[312967363,1706555039124,-755.75,0.00052054,31]
[312967364,1706555039147,-548.37739085,0.00052054,31]
[312967365,1706555039169,-551.13039432,0.00052054,31]
[312967366,1706555039192,-500.0,0.00052054,31]
[312967367,1706555039216,-500.0,0.00052054,31]
[312967368,1706555039242,-500.0,0.00052054,31]
[312967369,1706555039265,-500.0,0.00052054,31]
[312967370,1706555039290,-500.0,0.00052054,31]
[312967371,1706555039315,-559.77285807,0.00052054,31]
[312967372,1706555039342,-500.0,0.00052054,31]
[312967373,1706555039369,-485.52986025,0.00052054,31]
[312967374,1706555039394,-591.48500221,0.00052054,31]
[312967375,1706555039418,-500.0,0.00052054,31]
[312967376,1706555039443,-160.87192608,0.00052054,31]
[312967377,1706555039467,-559.48,0.00052054,31]
[312967378,1706555039492,-500.0,0.00052054,31]
[312967379,1706555039516,-500.0,0.00052054,31]
[312967380,1706555039541,-584.86,0.00052054,31]
[312967381,1706555039565,-540.57042816,0.00052054,31]
[312967382,1706555039590,-2165.78,0.00052054,31]
[312967383,1706555039614,-500.0,0.00052054,31]
[312967384,1706555039639,-500.0,0.00052054,31]
[312967385,1706555039665,-564.47856465,0.00052054,31]
[312967386,1706555039694,-500.0,0.00052054,31]
[312967387,1706555039719,-2378.07,0.00052054,31]
[312967388,1706555039744,-500.0,0.00052054,31]
[312967389,1706555039768,-458.67164849,0.00052054,31]
[312967390,1706555039793,-500.0,0.00052054,31]
[312967391,1706555039818,-566.3141281,0.00052054,31]
[312967392,1706555039843,-1120.46,0.00052054,31]
[312967393,1706555039868,-500.0,0.00052054,31]
[312967394,1706555039892,-829.43,0.00052054,31]
[312967395,1706555039917,-1203.39,0.00052054,31]
[312967396,1706555039942,-517.6886855,0.00052054,31]
[312967397,1706555039966,-470.19721274,0.00052054,31]
[312967398,1706555039991,-500.0,0.00052054,31]
[312967399,1706555040016,-523.91097163,0.00052054,31]
[312967400,1706555040041,-903.98,0.00052054,31]
[312967401,1706555040068,-500.0,0.00052054,31]
[312967402,1706555040093,-535.9521273,0.00052054,31]
[312967403,1706555040121,-500.0,0.00052054,31]
[312967404,1706555040146,-209.14627281,0.00052054,31]
[312967405,1706555040170,-500.0,0.00052054,31]
[312967406,1706555040196,-602.09907107,0.00052054,31]
[312967407,1706555040226,-592.26061543,0.00052054,31]
[312967408,1706555040252,-569.76,0.00052054,31]
[312967409,1706555040278,-500.0,0.00052054,31]
[312967410,1706555040302,-155.4847448,0.00052054,31]
[312967411,1706555040327,-522.91875198,0.00052054,31]
[312967412,1706555040353,-664.25,0.00052054,31]
[312967413,1706555040379,-548.28,0.00052054,31]
[312967414,1706555040403,-1221.66,0.00052054,31]
[312967415,1706555040427,-172.21050107,0.00052054,31]
[312967416,1706555040449,-560.80854384,0.00052054,31]
[312967417,1706555040472,-500.0,0.00052054,31]
[312967418,1706555040495,-411.32939964,0.00052054,31]
[312967419,1706555040519,-4783.39,0.00052054,31]
[312967420,1706555040542,-500.0,0.00052054,31]
[312967421,1706555040566,-1499.3,0.00052054,31]
[312967422,1706555040590,-500.0,0.00052054,31]
[312967423,1706555040613,-543.09923353,0.00052054,31]
[312967424,1706555040637,-514.43680368,0.00052054,31]
[312967425,1706555040661,-509.08811155,0.00052054,31]
[312967426,1706555040685,-500.0,0.00052054,31]
[312967427,1706555040713,-507.25537974,0.00052054,30]
[312967428,1706555040738,-757.25,0.00052054,31]
[312967429,1706555040766,-500.0,0.00052054,31]
[312967430,1706555040790,-635.4,0.00052054,31]
[312967431,1706555040815,-1091.81,0.00052054,31]
[312967432,1706555040839,-312.64424731,0.00052054,31]
[312967433,1706555040864,-500.0,0.00052054,31]
[312967434,1706555040889,-500.0,0.00052054,31]
[312967435,1706555040914,-500.0,0.00052054,31]
[312967436,1706555040939,-1088.89,0.00052054,31]
[312967437,1706555040963,-941.46,0.00052054,31]
[312967438,1706555040987,-589.78042185,0.00052054,31]
[312967439,1706555041019,-1444.86,0.00052054,31]
[312967440,1706555041044,-500.0,0.00052054,31]
[312967441,1706555041068,-423.08898566,0.00052054,31]
[312967442,1706555041093,-600.0,0.00052054,120]
[312967443,1706555041118,-500.0,0.00052054,31]
[312967444,1706555041143,-500.0,0.00052054,31]
[312967445,1706555041170,-567.13,0.00052054,31]
[312967446,1706555041194,-830.73,0.00052054,31]
[312967447,1706555041218,-548.4921582,0.00052054,31]
[312967448,1706555041244,-537.50536637,0.00052054,31]
[312967449,1706555041269,-2312.86,0.00052054,31]
[312967450,1706555041293,-1937.36,0.00052054,31]
[312967451,1706555041320,-802.85,0.00052054,31]
[312967452,1706555041344,-500.0,0.00052054,31]
[312967453,1706555041369,-514.35518465,0.00052054,31]
[312967454,1706555041394,-500.0,0.00052054,31]
[312967455,1706555041420,-1276.31,0.00052054,31]
[312967456,1706555041445,-500.0,0.00052054,31]
[312967457,1706555041471,-500.0,0.00052054,31]
[312967458,1706555041495,-625.67991938,0.00052054,31]
[312967459,1706555041521,-500.0,0.00052054,31]
[312967460,1706555041546,-2254.69,0.00052054,31]
[312967461,1706555041570,-500.0,0.00052054,30]
[312967462,1706555041597,-521.31,0.00052054,31]
[312967463,1706555041622,-500.0,0.00052054,31]
[312967464,1706555041646,-545.58362505,0.00052054,31]
[312967465,1706555041825,-180.79755131,0.00052054,31]
[312967466,1706555041857,-2691.8,0.00052054,31]
[312967467,1706555041889,-500.0,0.00052054,31]
[312967468,1706555041914,-2458.29,0.00052054,31]
[312967469,1706555041940,-2932.27,0.00052054,31]
[312967470,1706555041965,-690.05,0.00052054,31]
[312967471,1706555041992,-500.0,0.00052054,31]
[312967472,1706555042018,-612.45,0.00052054,31]
[312967473,1706555042042,-513.10126444,0.00052054,31]
[312967474,1706555042069,-500.0,0.00052054,31]
[312967475,1706555042094,-400.09,0.00052054,31]
[312967476,1706555042120,-500.0,0.00052054,31]
[312967477,1706555042146,-500.0,0.00052054,31]
[312967478,1706555042172,-3110.93,0.00052054,31]
[312967479,1706555042198,-499.3579084,0.00052054,31]
[312967480,1706555042223,-1065.38,0.00052054,31]
[312967481,1706555042253,-500.0,0.00052054,31]
[312967482,1706555042276,-554.65496543,0.00052054,31]
[312967483,1706555042300,-500.0,0.00052054,31]
[312967484,1706555042328,-500.0,0.00052054,31]
[312967485,1706555042351,-543.96,0.00052054,31]
[312967486,1706555042376,-526.91344663,0.00052054,31]
[312967487,1706555042400,-500.0,0.00052054,31]
[312967488,1706555042426,-777.51,0.00052054,31]
[312967489,1706555042451,-500.0,0.00052054,31]
[312967490,1706555042475,-753.65,0.00052054,31]
[312967491,1706555042499,-500.0,0.00052054,31]
[312967492,1706555042523,-518.75367599,0.00052054,31]
[312967493,1706555042549,-500.0,0.00052054,31]
[312967494,1706555042574,-1432.27,0.00052054,31]
[312967495,1706555042599,-500.0,0.00052054,31]
[312967496,1706555042625,-500.0,0.00052054,31]
[312967497,1706555042649,-500.0,0.00052054,31]
[312967498,1706555042673,-500.0,0.00052054,31]
[312967499,1706555042696,-550.4,0.00052054,31]
[312967500,1706555042720,-856.68,0.00052054,31]
[312967501,1706555042743,-960.0,0.00052054,31]
[312967502,1706555042766,-531.63698261,0.00052054,31]
[312967503,1706555042793,-519.6732312,0.00052054,31]
[312967504,1706555042819,-267.7305095,0.00052054,31]
[312967505,1706555042844,-4643.43,0.00052054,31]
[312967506,1706555042869,-500.0,0.00052054,31]
[312967507,1706555042894,-500.0,0.00052054,31]
[312967508,1706555042918,-155.86524123,0.00052054,31]
[312967509,1706555042946,-824.85,0.00052054,31]
[312967510,1706555042969,-520.25863985,0.00052054,31]
[312967511,1706555042994,-500.0,0.00052054,31]
[312967512,1706555043020,-500.0,0.00052054,31]
[312967513,1706555043044,-528.57863415,0.00052054,31]
[312967514,1706555043069,-504.95852751,0.00052054,31]
[312967515,1706555043094,-1469.61,0.00052054,31]
[312967516,1706555043119,-1909.24,0.00052054,31]
[312967517,1706555043145,-500.36,0.00052054,31]
[312967518,1706555043173,-533.91144612,0.00052054,31]
[312967519,1706555043199,-1142.79,0.00052054,31]
[312967520,1706555043223,-529.38779093,0.00052054,31]
[312967521,1706555043253,-1693.32,0.00052054,31]
[312967522,1706555043277,-500.0,0.00052054,31]
[312967523,1706555043303,-528.35405687,0.00052054,31]
[312967524,1706555043328,-500.0,0.00052054,31]
[312967525,1706555043354,-500.0,0.00052054,31]
[312967526,1706555043379,-8419.24,0.00052054,31]
[312967527,1706555043406,-1890.21,0.00052054,31]
[312967528,1706555043431,-500.0,0.00052054,31]
[312967529,1706555043455,-532.88614685,0.00052054,31]
[312967530,1706555043479,-582.87,0.00052054,31]
[312967531,1706555043504,-500.0,0.00052054,31]
[312967532,1706555043529,-163.39541533,0.00052054,31]
[312967533,1706555043554,-491.25833697,0.00052054,31]
[312967534,1706555043580,-500.0,0.00052054,31]
[312967535,1706555043606,-660.93,0.00052054,31]
[312967536,1706555043632,-500.0,0.00052054,31]
[312967537,1706555043659,-517.69541445,0.00052054,31]
[312967538,1706555043685,-601.40587313,0.00052054,31]
[312967539,1706555043715,-500.0,0.00052054,31]
[312967540,1706555043740,-500.0,0.00052054,31]
[312967541,1706555043769,-500.0,0.00052054,31]
[312967542,1706555043796,-500.0,0.00052054,31]
[312967543,1706555043823,-500.56088947,0.00052054,31]
[312967544,1706555043851,-496.31540811,0.00052054,31]
[312967545,1706555043879,-500.0,0.00052054,31]
[312967546,1706555043908,-535.46,0.00052054,31]
[312967547,1706555043935,-500.0,0.00052054,31]
[312967548,1706555043962,-520.66484311,0.00052054,31]
[312967549,1706555043988,-500.0,0.00052054,31]
[312967550,1706555044014,-500.0,0.00052054,31]
[312967551,1706555044040,-544.78361062,0.00052054,31]
[312967552,1706555044065,-524.04602195,0.00052054,31]
[312967553,1706555044091,-1875.99,0.00052054,31]
[312967554,1706555044116,-1434.64,0.00052054,31]
[312967555,1706555044143,-500.0,0.00052054,31]
[312967556,1706555044169,-625.25572167,0.00052054,31]
[312967557,1706555044194,-982.48,0.00052054,31]
[312967558,1706555044220,-500.0,0.00052054,31]
[312967559,1706555044250,-500.0,0.00052054,31]
[312967560,1706555044276,-500.0,0.00052054,31]
[312967561,1706555044302,-1459.05,0.00052054,31]
[312967562,1706555044327,-500.0,0.00052054,31]
[312967563,1706555044353,-519.20236377,0.00052054,31]
[312967564,1706555044378,-507.90479574,0.00052054,31]
[312967565,1706555044402,-588.25827137,0.00052054,31]
[312967566,1706555044427,-500.0,0.00052054,31]
[312967567,1706555044454,-588.26,0.00052054,31]
[312967568,1706555044479,-500.0,0.00052054,31]
[312967569,1706555044504,-500.0,0.00052054,31]
[312967570,1706555044679,-540.69260994,0.00052054,31]
[312967571,1706555044706,-500.0,0.00052054,31]
[312967572,1706555044733,-670.15,0.00052054,31]
[312967573,1706555044759,-500.0,0.00052054,31]
[312967574,1706555044786,-578.86050806,0.00052054,31]
[312967575,1706555044812,-614.97,0.00052054,31]
[312967576,1706555044838,-1567.59,0.00052054,31]
[312967577,1706555044864,-500.0,0.00052054,31]
[312967578,1706555044897,-617.02628966,0.00052054,31]
[312967579,1706555044924,-500.0,0.00052054,31]
[312967580,1706555044951,-2367.59,0.00052054,31]
[312967581,1706555044976,-500.0,0.00052054,31]
[312967582,1706555045003,-500.0,0.00052054,31]
[312967583,1706555045032,-1297.66,0.00052054,31]
[312967584,1706555045059,-1568.73,0.00052054,31]
[312967585,1706555045085,-500.0,0.00052054,31]
[312967586,1706555045114,-3072.58,0.00052054,31]
[312967587,1706555045150,-500.0,0.00052054,31]
[312967588,1706555045180,-11004.0,0.00052054,31]
[312967589,1706555045211,-4105.19,0.00052054,31]
[312967590,1706555045250,-500.0,0.00052054,31]
[312967591,1706555045283,-323.54073332,0.00052054,31]
[312967592,1706555045324,-548.69305111,0.00052054,31]
[312967593,1706555045369,-613.37,0.00052054,31]
[312967594,1706555045417,-500.0,0.00052054,31]
[312967595,1706555045449,-500.0,0.00052054,31]
[312967596,1706555045480,-500.0,0.00052054,31]
[312967597,1706555045510,-554.95263511,0.00052054,31]
[312967598,1706555045541,-594.17202514,0.00052054,31]
[312967599,1706555045571,-525.06,0.00052054,31]
[312967600,1706555045602,-500.0,0.00052054,31]
[312967601,1706555045632,-500.0,0.00052054,31]
[312967602,1706555045669,-3102.11,0.00052054,31]
[312967603,1706555045699,-1929.94,0.00052054,31]
[312967604,1706555045728,-500.0,0.00052054,31]
[312967605,1706555045767,-500.0,0.00052054,31]
[312967606,1706555045795,-599.37642266,0.00052054,31]
[312967607,1706555045822,-542.69544111,0.00052054,31]
[312967608,1706555045851,-978.85,0.00052054,31]
[312967609,1706555045880,-1083.28,0.00052054,31]
[312967610,1706555045915,-462.65839969,0.00052054,31]
[312967611,1706555045944,-512.8935336,0.00052054,31]
[312967612,1706555045971,-317.33204105,0.00052054,31]
[312967613,1706555046002,-1494.16,0.00052054,31]
[312967614,1706555046031,-4627.0,0.00052054,31]
[312967615,1706555046059,-514.18862778,0.00052054,31]
[312967616,1706555046086,-500.0,0.00052054,31]
[312967617,1706555046114,-500.0,0.00052054,31]
[312967618,1706555046142,-560.26,0.00052054,31]
[312967619,1706555046174,-793.18,0.00052054,31]
[312967620,1706555046201,-500.0,0.00052054,31]
[312967621,1706555046228,-500.0,0.00052054,31]
[312967622,1706555046255,-520.30791473,0.00052054,31]
[312967623,1706555046282,-500.0,0.00052054,31]
[312967624,1706555046307,-500.0,0.00052054,31]
[312967625,1706555046334,-3214.67,0.00052054,31]
[312967626,1706555046360,-150.0,0.00052054,120]
[312967627,1706555046385,-339.5339206,0.00052054,31]
[312967628,1706555046415,-500.0,0.00052054,31]
[312967629,1706555046441,-500.0,0.00052054,31]
[312967630,1706555046467,-500.0,0.00052054,31]
[312967631,1706555046493,-4717.35,0.00052054,31]
[312967632,1706555046520,-1061.01,0.00052054,31]
[312967633,1706555046547,-500.0,0.00052054,31]
[312967634,1706555046574,-906.57,0.00052054,31]
[312967635,1706555046601,-500.0,0.00052054,31]
[312967636,1706555046628,-500.0,0.00052054,31]
[312967637,1706555046655,-6384.88,0.00052054,31]
[312967638,1706555046680,-500.0,0.00052054,31]
[312967639,1706555046705,-688.54,0.00052054,31]
[312967640,1706555046730,-500.0,0.00052054,31]
[312967641,1706555046756,-500.0,0.00052054,31]
[312967642,1706555046782,-1611.67,0.00052054,31]
[312967643,1706555046808,-500.0,0.00052054,31]
[312967644,1706555046833,-500.0,0.00052054,31]
[312967645,1706555046858,-500.0,0.00052054,31]
[312967646,1706555046886,-479.85054823,0.00052054,31]
[312967647,1706555046914,-663.14,0.00052054,31]
[312967648,1706555046940,-500.0,0.00052054,31]
[312967649,1706555046966,-1199.93,0.00052054,31]
[312967650,1706555046992,-500.0,0.00052054,31]
[312967651,1706555047017,-1250.06,0.00052054,31]
[312967652,1706555047047,-4571.4,0.00052054,31]
[312967653,1706555047075,-500.0,0.00052054,31]
[312967654,1706555047100,-176.37364988,0.00052054,31]
[312967655,1706555047126,-500.0,0.00052054,31]
[312967656,1706555047153,-594.65,0.00052054,31]
[312967657,1706555047178,-500.0,0.00052054,31]
[312967658,1706555047205,-1520.72,0.00052054,31]
[312967659,1706555047230,-500.0,0.00052054,31]
[312967660,1706555047257,-500.0,0.00052054,31]
[312967661,1706555047282,-3667.57741696,0.00052054,31]
[312967662,1706555047307,-500.0,0.00052054,31]
[312967663,1706555047334,-500.0,0.00052054,31]
[312967664,1706555047360,-642.75914243,0.00052055,120]
[312967665,1706555047387,-500.0,0.00052055,120]
[312967666,1706555047876,500.0,0.00052054,31]
[312967667,1706555047917,1067.3,0.00052054,31]
[312967668,1706555048045,7989.7744028,0.00045,30]
[312967669,1706555048298,195.94483903,0.00052054,31]
[312967670,1706555048860,405.14554141,0.00052054,31]
[312967671,1706555048903,713.30733836,0.0004,30]
[312967672,1706555049096,359.89930562,0.0005,120]
[312967673,1706555055929,169.41,0.00021934,2]
[312967674,1706555065327,1372.29,0.00021934,2]
[312967675,1706555079296,155.02,0.00022098,2]
[312967676,1706555080616,18976.97972243,0.00021934,2]
[312967677,1706555082493,808.3198501,0.00021934,2]
[312967678,1706555094575,361.34078725,0.00021934,2]
[312967679,1706555096943,533.37470322,0.00021934,2]
[312967680,1706555100616,10287.96299394,0.00021934,2]
[312967681,1706555101322,592.34580771,0.00021934,2]
[312967682,1706555102545,808.3198501,0.00021934,2]
[312967686,1706555118066,200.0,0.00021933,2]
[312967687,1706555119424,1652.43,0.00021934,2]
[312967688,1706555120790,150.9549228,0.00022,2]
[312967689,1706555122523,814.94237815,0.00021934,2]
[312967690,1706555130136,184.37,0.00021934,2]
[312967691,1706555231491,1706.87134,0.00022392,2]
[312967692,1706555274374,181.98206052,0.00022999,10]
[312967693,1706555287361,748.3,0.00020694,2]
[312967694,1706555314412,677.3483605,0.000225,2]
[312967695,1706555321239,174.41982976,0.000225,2]
[312967701,1706555369041,221.67323377,0.00022448,2]
[312967702,1706555374021,221.67323375,0.00022473,2]
[312967703,1706555379000,221.67323375,0.00022499,2]
[312967704,1706555384792,176.69,0.00022,2]
[312967718,1706555431881,-155.0,0.00022508,2]
[312967719,1706555431891,-155.0,0.00022508,2]
[312967720,1706555431900,-677.3483605,0.00022509,2]
[312967721,1706555431910,-174.41982976,0.00022509,2]
[312967722,1706555431920,-3355.86877556,0.00022512,2]
[312967723,1706555431935,-1254.89547229,0.00022512,2]
[312967724,1706555431945,-221.67323375,0.00022524,2]
[312967725,1706555431955,-176.69,0.00022548,2]
[312967726,1706555431965,-221.67323375,0.00022549,2]
[312967727,1706555431974,-221.67323375,0.00022574,2]
[312967728,1706555431984,-221.67323375,0.000226,2]
[312967729,1706555432004,-221.67323375,0.00022625,2]
[312967730,1706555432014,-221.67323375,0.0002265,2]
[312967731,1706555432024,-221.67323375,0.00022675,2]
[312967732,1706555432034,-548.2,0.00022684,2]
[312967733,1706555432045,-221.67323375,0.00022701,2]
[312967734,1706555432055,-221.67323375,0.00022726,2]
[312967735,1706555432065,-221.67323375,0.00022751,2]
[312967736,1706555432075,-6553.0,0.0002277,2]
[312967737,1706555432085,-300.0,0.00022797,2]
[312967738,1706555432095,-150.0,0.00022797,2]
[312967740,1706555432104,-330.0054,0.00022798,2]
[312967741,1706555432113,-3335.2758,0.00022798,2]
[312967743,1706555432124,-800.0,0.00022816,2]
[312967745,1706555432133,-499.99,0.00022865,2]
[312967747,1706555432144,-467.90017759,0.000229,2]
[312967749,1706555432154,-2022.46,0.000229,2]
[312967751,1706555432164,-3854.775,0.000229,2]
[312967753,1706555432173,-220.19602871,0.000229,2]
[312967755,1706555432184,-154.23524798,0.00022912,2]
[312967756,1706555432194,-201.5901036,0.00022928,2]
[312967758,1706555432204,-194.58103893,0.00022928,2]
[312967760,1706555432213,-140.15055244,0.00022928,2]
[312967763,1706555432235,-863.54364,0.00022928,2]
[312967771,1706555433971,305.59,0.00021899,2]
[312967798,1706555438314,-221.67323375,0.00022776,2]
[312967799,1706555438324,-961.89561686,0.00022928,2]
[312967800,1706555438333,-368.65888733,0.00022928,2]
[312967801,1706555438342,-748.3,0.00022957,2]
[312967802,1706555438352,-10645.11186206,0.00022998,2]
[312967805,1706555440520,-221.67323375,0.00022802,2]
[312967806,1706555440530,-706.66529698,0.00022998,2]
[312967807,1706555440540,-244.1979878,0.00022998,2]
[312967808,1706555440549,-517.58795719,0.00022998,2]
[312967809,1706555440559,-275.31107289,0.00022998,2]
[312967810,1706555440569,-175.86888086,0.00022998,2]
[312967811,1706555440579,-489.299569,0.00022998,2]
[312967812,1706555440588,-268.93407681,0.00022999,2]
[312967813,1706555440598,-892.0795951,0.00022999,2]
[312967814,1706555440607,-447.61808327,0.00022999,2]
[312967815,1706555440618,-1056.61159885,0.00022999,2]
[312967816,1706555441162,-984.08173537,0.00022999,2]
[312967817,1706555441173,-888001.25931391,0.00023,2]
[312967818,1706555441182,-1113067.6542633,0.00023,2]
[312967819,1706555441192,-288.16,0.00023028,2]
[312967820,1706555441202,-176.69,0.00023096,2]
[312967821,1706555441212,-7231.22096402,0.0002313,2]
[312967822,1706555441222,-155.02,0.0002325,2]
[312967823,1706555441232,-169.41,0.00023396,2]
[312967824,1706555441241,-1652.43,0.00023578,2]
[312967825,1706555441251,-176.69,0.00023644,2]
[312967826,1706555441261,-202.0593939,0.00024,2]
[312967827,1706555441270,-288.16,0.00024125,2]
[312967828,1706555441280,-176.69,0.00024192,2]
[312967829,1706555441289,-168.38,0.00024297,2]
[312967830,1706555441299,-168.38,0.00024297,2]
[312967831,1706555441308,-451.57864314,0.000243,4]
[312967832,1706555441318,-2906.0,0.000243,2]
[312967833,1706555441328,-1149.61,0.00024384,2]
[312967834,1706555441337,-4386.13,0.00024384,2]
[312967835,1706555441346,-6613.0,0.000244,2]
[312967836,1706555441357,-3473.81345498,0.00024512,2]
[312967837,1706555441369,-192.44947352,0.00024584,2]
[312967838,1706555441380,-250.0,0.00024658,2]
[312967839,1706555441389,-564.75,0.00024671,2]
[312967840,1706555441399,-200.20023894,0.0002474,2]
[312967841,1706555441410,-169.41,0.00024859,2]
[312967842,1706555441420,-3011.67714353,0.00025,2]
[312967843,1706555441430,-717.24099228,0.00025,2]
[312967845,1706555441441,-208.02736992,0.00025,2]
[312967847,1706555441451,-307.5946143,0.00025,5]
[312967849,1706555441462,-550.0,0.00025,3]
[312967851,1706555441472,-288.16,0.00025221,2]
[312967853,1706555441481,-748.3,0.00025221,2]
[312967854,1706555441491,-1652.43,0.00025222,2]
[312967855,1706555441500,-548.2,0.0002552,2]
[312967856,1706555441509,-467.90017756,0.00025614,2]
[312967857,1706555441518,-150.0,0.00026079,2]
[312967858,1706555441528,-3473.81345498,0.00026226,2]
[312967859,1706555441538,-2705.0,0.00026243,2]
[312967860,1706555441547,-288.16,0.00026318,2]
[312967861,1706555441558,-169.41,0.00026321,2]
[312967862,1706555441568,-3209.72,0.00026326,2]
[312967863,1706555441577,-10000.0,0.00026367,2]
[312967864,1706555441587,-202.164828,0.00026536,2]
[312967865,1706555441596,-154.23524798,0.00026698,2]
[312967866,1706555441606,-150.0,0.000268,2]
[312967867,1706555441615,-1652.43,0.00026866,2]
[312967868,1706555441625,-600.0,0.00027,3]
[312967869,1706555441634,-199.0,0.000271,5]
[312967870,1706555441643,-300.0,0.00027397,5]
[312967871,1706555441653,-155.0,0.00027397,2]
[312967872,1706555441663,-195.84,0.00027397,2]
[312967873,1706555441672,-155.88,0.00027397,2]
[312967874,1706555441681,-155.89,0.00027397,2]
[312967875,1706555441691,-155.89,0.00027397,2]
[312967876,1706555441701,-163.68,0.00027397,2]
[312967877,1706555441711,-564.75,0.00027413,2]
[312967878,1706555441720,-748.3,0.00027485,2]
[312967879,1706555441729,-12938.06172179,0.000275,2]
[312967880,1706555441739,-2016.72,0.00027671,2]
[312967881,1706555441748,-163.68,0.00027686,2]
[312967882,1706555441757,-200.0,0.00027776,3]
[312967883,1706555441768,-155.88,0.00027895,2]
[312967884,1706555441778,-155.89,0.00027895,2]
[312967885,1706555441788,-3473.81345498,0.0002794,2]
[312967886,1706555441798,-300.0,0.00027945,5]
[312967887,1706555441807,-163.68,0.00027974,2]
[312967888,1706555441818,-155.89,0.00028082,2]
[312967889,1706555441827,-163.68,0.00028262,2]
[312967890,1706555441837,-467.90017756,0.00028329,4]
[312967891,1706555441846,-548.2,0.00028355,2]
[312967892,1706555441856,-155.88,0.00028394,2]
[312967893,1706555441866,-155.89,0.00028394,2]
[312967894,1706555441875,-205.0,0.00028429,2]
[312967895,1706555441885,-205.0,0.00028429,2]
[312967896,1706555441894,-205.0,0.00028429,2]
[312967897,1706555441904,-300.0,0.00028493,5]
[312967898,1706555441914,-1652.43,0.0002851,2]
[312967899,1706555441924,-163.68,0.00028551,2]
[312967900,1706555441933,-155.0,0.00028767,2]
[312967901,1706555441942,-155.89,0.00028767,2]
[312967902,1706555441951,-163.68,0.00028839,2]
[312967903,1706555442109,-155.88,0.00028892,2]
[312967904,1706555442161,-155.89,0.00028892,2]
[312967905,1706555442171,-18746.78039763,0.00029,2]
[312967906,1706555442180,-650.0,0.00029,3]
[312967907,1706555442189,-300.0,0.00029041,5]
[312967908,1706555442199,-163.68,0.00029128,2]
[312967909,1706555442210,-342.0,0.000292,2]